fUSD/lending_fUSD_20260427
["ID","MTS","AMOUNT","RATE_DAILY","PERIOD"]
[421261365,1777287276904,-443.0,0.00042957,30]
[421261366,1777287276913,-620.0,0.00042957,30]
[421261367,1777287276922,-500.0,0.00042957,30]
[421261368,1777287276931,-443.0,0.00042957,30]
[421261369,1777287276940,-642.94,0.00042957,40]
[421261370,1777287276949,-500.0,0.00042957,30]
[421261371,1777287276959,-2345.0,0.00042957,30]
[421261372,1777287276968,-443.0,0.00042957,30]
[421261373,1777287276977,-666.72878,0.00042957,60]
[421261374,1777287276987,-1321.33294171,0.00042957,30]
[421261375,1777287276996,-2345.0,0.00042957,30]
[421261376,1777287277005,-443.0,0.00042957,30]
[421261377,1777287277015,-691.39774486,0.00042957,120]
[421261378,1777287277024,-160.0,0.00042957,30]
[421261379,1777287277033,-719.17137347,0.00042957,60]
[421261380,1777287277043,-443.0,0.00042957,30]
[421261381,1777287277053,-160.0,0.00042957,40]
[421261382,1777287277063,-443.0,0.00042957,30]
[421261383,1777287277072,-160.0,0.00042957,60]
[421261384,1777287277082,-1000.0,0.00042957,30]
[421261385,1777287277092,-160.0,0.00042957,120]
[421261386,1777287277101,-1037.0,0.00042957,30]
[421261387,1777287277110,-1075.369,0.00042957,30]
[421261388,1777287277120,-350.52484319,0.00042957,30]
[421261389,1777287277130,-151.0,0.00042957,30]
[421261390,1777287277139,-1115.157653,0.00042957,30]
[421261391,1777287277149,-151.0,0.00042957,40]
[421261392,1777287277159,-1156.41848616,0.00042957,30]
[421261393,1777287277168,-162.39,0.00042957,30]
[421261394,1777287277177,-151.0,0.00042957,60]
[421261395,1777287277187,-1000.0,0.00042957,30]
[421261396,1777287277196,-814.78278578,0.00042957,30]
[421261397,1777287277206,-151.0,0.00042957,120]
[421261398,1777287277216,-1000.0,0.00042957,30]
[421261399,1777287277225,-151.0,0.00042957,30]
[421261400,1777287277234,-500.0,0.00042957,30]
[421261401,1777287277245,-1000.0,0.00042957,30]
[421261402,1777287277255,-156.587,0.00042957,40]
[421261403,1777287277264,-518.5,0.00042957,40]
[421261404,1777287277274,-1000.0,0.00042957,30]
[421261405,1777287277283,-162.380719,0.00042957,60]
[421261406,1777287277292,-537.6845,0.00042957,60]
[421261407,1777287277302,-1000.0,0.00042957,30]
[421261408,1777287277312,-168.3888056,0.00042957,120]
[421261409,1777287277321,-557.5788265,0.00042957,120]
[421261410,1777287277332,-1000.0,0.00042957,30]
[421261411,1777287277341,-1500.0,0.00042957,30]
[421261412,1777287277486,-1555.5,0.00042957,30]
[421261413,1777287277496,-1000.0,0.00042957,30]
[421261414,1777287277505,-1613.0535,0.00042957,30]
[421261415,1777287277515,-1000.0,0.00042957,30]
[421261416,1777287277524,-1672.7364795,0.00042957,30]
[421261417,1777287277533,-151.0,0.00042957,30]
[421261418,1777287277543,-1000.0,0.00042957,30]
[421261419,1777287277552,-1734.62772924,0.00042957,30]
[421261420,1777287277562,-156.587,0.00042957,40]
[421261421,1777287277572,-1004.01572595,0.00042957,30]
[421261422,1777287277581,-1798.80895522,0.00042957,30]
[421261423,1777287277590,-162.380719,0.00042957,60]
[421261424,1777287277600,-1865.36488657,0.00042957,30]
[421261425,1777287277609,-251.0,0.00042957,30]
[421261426,1777287277618,-168.3888056,0.00042957,120]
[421261427,1777287277627,-1934.38338737,0.00042957,30]
[421261428,1777287277637,-260.287,0.00042957,40]
[421261429,1777287277646,-2005.9555727,0.00042957,30]
[421261430,1777287277655,-151.0,0.00042957,30]
[421261431,1777287277665,-269.917619,0.00042957,60]
[421261432,1777287277674,-2080.17592889,0.00042957,30]
[421261433,1777287277683,-156.587,0.00042957,40]
[421261434,1777287277692,-2157.14243826,0.00042957,30]
[421261435,1777287277702,-162.380719,0.00042957,60]
[421261436,1777287277711,-937.7647593,0.00042957,30]
[421261437,1777287277720,-168.3888056,0.00042957,120]
[421261438,1777287277730,-362.54926711,0.00042958,30]
[421261439,1777287277739,-221.08007226,0.00042959,2]
[421261440,1777287277749,-246.34,0.00042961,30]
[421261441,1777287277758,-500.0,0.00042961,30]
[421261442,1777287277768,-500.0,0.00042961,30]
[421261443,1777287277777,-290.6,0.00042961,30]
[421261444,1777287277786,-216.24,0.00042973,30]
[421261445,1777287277796,-10117.92214436,0.00042976,120]
[421261446,1777287277805,-41586.63291941,0.0004299,60]
[421261447,1777287277815,-493.33410016,0.00043,7]
[421261448,1777287277824,-493.33410016,0.00043,7]
[421261449,1777287277833,-48845.99,0.00043,90]
[421261450,1777287277843,-505.0,0.00043,30]
[421261451,1777287277858,-2212.16568914,0.00043,30]
[421261452,1777287277867,-165.61245885,0.00043,30]
[421261453,1777287277877,-300.0,0.00043,2]
[421261454,1777287277887,-765.4477886,0.00043,3]
[421261455,1777287277897,-83866.04019755,0.00043,60]
[421261456,1777287277907,-603000.0,0.00043,30]
[421261457,1777287277917,-197.25,0.00043,30]
[421261458,1777287277927,-214.0,0.00043,7]
[421261459,1777287277937,-774555.25518371,0.00043,30]
[421261460,1777287277947,-246.74749214,0.00043,7]
[421261461,1777287277958,-246.74749214,0.00043,7]
[421261462,1777287277968,-63512.28002816,0.00043,5]
[421261463,1777287277978,-68940.86756045,0.00043,30]
[421261464,1777287277987,-5150.0,0.00043,30]
[421261465,1777287277997,-1000.0,0.00043,30]
[421261466,1777287278007,-1237.52962202,0.00043,30]
[421261467,1777287278018,-414915.00138172,0.00043,30]
[421261468,1777287278028,-10347.85005983,0.00043,30]
[421261469,1777287278038,-900.0,0.00043,120]
[421261470,1777287278049,-2262.71153641,0.00043,99]
[421261471,1777287278060,-6372.08,0.00043,30]
[421261472,1777287278069,-1000.0,0.00043,120]
[421261473,1777287278080,-49138.77699206,0.00043,120]
[421261474,1777287278090,-1655.5065433,0.00043,120]
[421261475,1777287278099,-893.00199056,0.00043,120]
[421261476,1777287278109,-187.91049111,0.00043,120]
[421261477,1777287278118,-203.77569191,0.00043,120]
[421261478,1777287278128,-2314.61792017,0.00043,120]
[421261479,1777287278138,-424.45798379,0.00043,120]
[421261480,1777287278148,-205.4,0.00043,120]
[421261481,1777287278158,-41587.9859999,0.00043,120]
[421261482,1777287279874,-498.40763402,0.00043,120]
[421261483,1777287279901,-500.0,0.0003315,120]
[421261484,1777287279911,-1282.75,0.0003589,120]
[421261485,1777287279920,-151.0,0.00041096,120]
[421261486,1777287279930,-966.25,0.00043,120]
[421261487,1777287280047,500.0,0.00032876,120]
[421261488,1777287280134,500.0,0.00032876,120]
[421261489,1777287280223,500.0,0.00032876,120]
[421261490,1777287280366,500.36304258,0.00032876,120]
[421261491,1777287280496,500.0,0.00032876,120]
[421261492,1777287280800,500.0,0.00032876,120]
[421261493,1777287280847,683.47,0.00032876,120]
[421261494,1777287280923,825.83,0.00032876,120]
[421261495,1777287281050,196.81,0.00032876,120]
[421261496,1777287281095,500.0,0.00032876,120]
[421261497,1777287281272,500.0,0.00032876,120]
[421261498,1777287281389,500.0,0.00032876,120]
[421261499,1777287281451,2000.0,0.00032877,120]
[421261500,1777287281527,501.14587474,0.00032876,120]
[421261501,1777287281690,500.0,0.00032876,120]
[421261502,1777287281765,522.49208338,0.00032876,120]
[421261503,1777287281853,500.0,0.00032876,120]
[421261504,1777287282027,500.0,0.00032876,120]
[421261505,1777287282075,500.0,0.00032876,120]
[421261506,1777287282219,500.0,0.00032876,120]
[421261507,1777287282311,500.0,0.00032876,120]
[421261508,1777287282445,500.0,0.00032876,120]
[421261509,1777287282508,500.0,0.00032876,120]
[421261510,1777287282616,500.0,0.00032876,120]
[421261511,1777287282932,500.0,0.00032876,120]
[421261512,1777287283059,500.0,0.00032876,120]
[421261513,1777287283419,500.0,0.00032876,120]
[421261514,1777287283585,500.0,0.00032876,120]
[421261515,1777287283748,500.0,0.00032876,120]
[421261516,1777287283994,500.0,0.00032876,120]
[421261517,1777287284043,500.0,0.00032876,120]
[421261518,1777287284191,500.60287788,0.00032876,120]
[421261519,1777287284236,590.12,0.00032876,120]
[421261520,1777287284307,508.09956791,0.00032876,120]
[421261521,1777287284436,500.0,0.00032876,120]
[421261522,1777287284582,500.0,0.00032876,120]
[421261523,1777287284681,500.0,0.00032876,120]
[421261524,1777287284723,500.0,0.00032876,120]
[421261525,1777287284769,783.56,0.00032876,120]
[421261526,1777287284978,500.0,0.00032876,120]
[421261527,1777287285541,500.0,0.00032876,120]
[421261528,1777287285644,500.0,0.00032876,120]
[421261529,1777287285719,1746.16,0.00032876,120]
[421261530,1777287285817,500.2139419,0.00032876,120]
[421261531,1777287285861,370.77956025,0.00032876,120]
[421261532,1777287285925,500.0,0.00032876,120]
[421261533,1777287286063,500.0,0.00032876,120]
[421261534,1777287286131,555.32623739,0.00032876,120]
[421261535,1777287286191,501.9753277,0.00032876,120]
[421261536,1777287286271,500.0,0.00032876,120]
[421261537,1777287286334,500.0,0.00032876,120]
[421261538,1777287286440,551.1,0.00032876,120]
[421261539,1777287286506,500.0,0.00032876,120]
[421261540,1777287286696,500.62366016,0.00032876,120]
[421261541,1777287286851,500.0,0.00032876,120]
[421261542,1777287286916,500.0,0.00032876,120]
[421261543,1777287286968,500.0,0.00032876,120]
[421261544,1777287287078,500.0,0.00032876,120]
[421261545,1777287287418,500.0,0.00032876,120]
[421261546,1777287287473,500.0,0.00032876,120]
[421261547,1777287287557,545.66,0.00032876,120]
[421261548,1777287287729,500.0,0.00032876,120]
[421261549,1777287287792,500.0,0.00032876,120]
[421261550,1777287287936,539.28,0.00032876,120]
[421261551,1777287288144,802.34,0.00032876,120]
[421261552,1777287288285,500.0,0.00032876,120]
[421261553,1777287288340,500.0,0.00032876,120]
[421261554,1777287288571,4715.45,0.00032876,120]
[421261555,1777287288614,500.0,0.00032876,120]
[421261556,1777287288698,500.0,0.00032876,120]
[421261557,1777287289081,1821.88,0.00032876,120]
[421261558,1777287289341,500.0,0.00032876,120]
[421261559,1777287289614,500.0,0.00032876,120]
[421261560,1777287289782,500.0,0.00032876,120]
[421261561,1777287290082,500.0,0.00032876,120]
[421261562,1777287290295,500.0,0.00032876,120]
[421261563,1777287290499,500.0,0.00032876,120]
[421261564,1777287290693,512.32,0.00032876,120]
[421261565,1777287290848,500.0,0.00032876,120]
[421261566,1777287290999,2253.15,0.00032876,120]
[421261567,1777287294141,500.0,0.00032876,120]
[421261568,1777287295021,732.81,0.00032876,120]
[421261569,1777287295091,500.0,0.00032876,120]
[421261570,1777287295275,886.61,0.00032876,120]
[421261571,1777287295539,909.99,0.00032876,120]
[421261572,1777287295606,500.0,0.00032876,120]
[421261573,1777287295915,500.0,0.00032876,120]
[421261574,1777287295983,500.0,0.00032876,120]
[421261575,1777287296075,500.0,0.00032876,120]
[421261576,1777287296167,696.84,0.00032876,120]
[421261577,1777287296287,500.0,0.00032876,120]
[421261578,1777287296547,500.0,0.00032876,120]
[421261579,1777287296594,500.0,0.00032876,120]
[421261580,1777287296706,500.0,0.00032876,120]
[421261581,1777287296897,500.0,0.00032876,120]
[421261582,1777287296979,505.89513778,0.00032876,120]
[421261583,1777287297222,500.0,0.00032876,120]
[421261584,1777287297463,500.0,0.00032876,120]
[421261585,1777287297569,1228.27,0.00032876,120]
[421261586,1777287297727,500.0,0.00032876,120]
[421261587,1777287298078,500.0,0.00032876,120]
[421261588,1777287298268,500.0,0.00032876,120]
[421261589,1777287298481,1000.0,0.00032876,120]
[421261590,1777287298816,576.91,0.00032876,120]
[421261591,1777287298875,500.0,0.00032876,120]
[421261592,1777287299031,500.0,0.00032876,120]
[421261593,1777287299224,1616.56,0.00032876,120]
[421261594,1777287299301,500.0,0.00032876,120]
[421261595,1777287299488,500.0,0.00032876,120]
[421261596,1777287299635,500.0,0.00032876,120]
[421261597,1777287299702,500.0,0.00032876,120]
[421261598,1777287299789,620.6882329,0.00032876,120]
[421261599,1777287299846,500.0,0.00032876,120]
[421261600,1777287299929,500.0,0.00032876,120]
[421261601,1777287299993,769.56,0.00032876,120]
[421261602,1777287300286,500.0,0.00032876,120]
[421261603,1777287300388,500.0,0.00032876,120]
[421261604,1777287300444,500.0,0.00032876,120]
[421261605,1777287300595,500.0,0.00032876,120]
[421261606,1777287300984,507.09802575,0.00032876,120]
[421261607,1777287301037,500.0,0.00032876,120]
[421261608,1777287301105,1134.23,0.00032876,120]
[421261609,1777287301269,500.0,0.00032876,120]
[421261610,1777287301324,500.0,0.00032876,120]
[421261611,1777287301399,500.0,0.00032876,120]
[421261612,1777287301472,500.0,0.00032876,120]
[421261613,1777287301531,500.0,0.00032876,120]
[421261614,1777287301576,500.0,0.00032876,120]
[421261615,1777287302287,500.0,0.00032876,120]
[421261616,1777287302384,913.77,0.00032876,120]
[421261617,1777287302518,500.0,0.00032876,120]
[421261618,1777287314430,750.91,0.00032876,120]
[421261619,1777287318723,975.66,0.00032876,120]
[421261620,1777287339064,1026.86,0.00032876,120]
[421261621,1777287343089,768.91,0.00032876,120]
[421261622,1777287362628,500.0,0.00032876,120]
[421261623,1777287374335,1000.0,0.00032876,120]
[421261624,1777287375300,500.0,0.00032876,120]
[421261625,1777287386575,641.37,0.00032876,120]
[421261626,1777287395082,535.18150395,0.00032876,120]
[421261627,1777287395577,575.70951891,0.00032876,120]
[421261628,1777287399149,500.0,0.00032876,120]
[421261629,1777287404729,500.0,0.00032876,120]
[421261630,1777287410163,784.9,0.00032876,120]
[421261631,1777287416621,500.0,0.00032876,120]
[421261632,1777287426824,500.0,0.00032876,120]
[421261633,1777287427994,500.0,0.00032876,120]
[421261634,1777287430666,500.0,0.00032876,120]
[421261635,1777287434218,698.08,0.00032876,120]
[421261636,1777287438354,500.0,0.00032876,120]
[421261637,1777287441551,648.9540458,0.00032876,120]
[421261638,1777287442724,500.0,0.00032876,120]
[421261639,1777287455745,500.0,0.00032876,120]
[421261640,1777287456604,676.45,0.00032876,120]
[421261641,1777287461181,500.0,0.00032876,120]
[421261642,1777287463689,500.0,0.00032876,120]
[421261643,1777287468358,500.0,0.00032876,120]
[421261644,1777287468406,500.0,0.00032876,120]
[421261645,1777287471458,690.56,0.00032876,120]
[421261646,1777287474963,567.57,0.00032876,120]
[421261647,1777287475106,500.0,0.00032876,120]
[421261648,1777287477764,2161.16,0.00032876,120]
[421261649,1777287481655,500.0,0.00032876,120]
[421261650,1777287482999,500.0,0.00032876,120]
[421261651,1777287488723,202.5,0.0003287,120]
[421261652,1777287510914,1136.65,0.00032876,120]
[421261653,1777287518776,1166.64,0.00032876,120]
[421261654,1777287528228,500.0,0.00032876,120]
[421261655,1777287530042,500.0,0.00032876,120]
[421261656,1777287532431,514.08,0.00032876,120]
[421261657,1777287534184,654.99,0.00032876,120]
[421261658,1777287538977,500.0,0.00032876,120]
[421261659,1777287541083,500.0,0.00032876,120]
[421261660,1777287544585,500.0,0.00032876,120]
[421261661,1777287544759,500.0,0.00032876,120]
[421261662,1777287559200,479.36,0.00032876,120]
[421261663,1777287571138,500.0,0.00032876,120]
[421261664,1777287573200,1549.2,0.00032876,120]
[421261665,1777287581292,1745.97,0.00032876,120]
[421261666,1777287583743,2000.5979994,0.00032877,120]
[421261667,1777287588523,500.0,0.00032876,120]
[421261668,1777287589720,860.91,0.00032876,120]
[421261669,1777287591796,500.0,0.00032876,120]
[421261670,1777287598084,200.7406055,0.0003,120]
[421261671,1777287607521,500.0,0.00032876,120]
[421261672,1777287632821,1485.11,0.00032876,120]
[421261673,1777287635147,500.0,0.00032876,120]
[421261674,1777287640534,500.0,0.00032876,120]
[421261675,1777287642864,849.67,0.00032876,120]
[421261676,1777287643168,500.0,0.00032876,120]
[421261677,1777287646034,441.00321276,0.0003,120]
[421261679,1777287658136,159.92826045,0.0003,120]
[421261680,1777287660813,679.91,0.00032876,120]
[421261681,1777287667217,500.0,0.00032876,120]
[421261682,1777287674007,1980.6,0.00032876,120]
[421261683,1777287677844,500.0,0.00032876,120]
[421261684,1777287681736,500.0,0.00032876,120]
[421261685,1777287689925,1673.41,0.00032876,120]
[421261686,1777287706678,500.0,0.00032876,120]
[421261687,1777287706799,500.0,0.00032876,120]
[421261688,1777287710502,1072.86,0.00032876,120]
[421261689,1777287712749,500.0,0.00032876,120]
[421261690,1777287726770,2159.27,0.00032876,120]
[421261691,1777287728846,500.0,0.00032876,120]
[421261692,1777287732195,737.5,0.00032876,120]
[421261693,1777287745491,500.0,0.00032876,120]
[421261694,1777287747215,607.17,0.00032876,120]
[421261695,1777287747592,1086.97,0.00032876,120]
[421261696,1777287753384,1139.25,0.00032876,120]
[421261697,1777287768844,500.0,0.00032876,120]
[421261698,1777287776879,593.35,0.00032876,120]
[421261699,1777287781493,500.0,0.00032876,120]
[421261700,1777287789491,4518.98,0.00032876,120]
[421261701,1777287790574,500.0,0.00032876,120]
[421261702,1777287793162,719.62,0.00032876,120]
[421261703,1777287795227,1177.09,0.00032876,120]
[421261704,1777287796885,199.09,0.00032876,120]
[421261705,1777287798759,500.0,0.00032876,120]
[421261706,1777287799650,700.0,0.00032876,120]
[421261707,1777287801701,500.0,0.00032876,120]
[421261708,1777287801742,500.0,0.00032876,120]
[421261709,1777287808748,500.0,0.00032876,120]
[421261710,1777287810554,500.0,0.00032876,120]
[421261711,1777287812673,500.0,0.00032876,120]
[421261712,1777287817619,500.0,0.00032876,120]
[421261714,1777287822812,736.87,0.00032876,120]
[421261715,1777287825422,500.0,0.00032876,120]
[421261716,1777287826101,500.0,0.00032876,120]
[421261717,1777287826227,500.0,0.00032876,120]
[421261718,1777287833692,500.0,0.00032876,120]
[421261719,1777287838873,791.42,0.00032876,120]
[421261720,1777287846231,522.93,0.00032876,120]
[421261721,1777287854295,500.0,0.00032876,120]
[421261722,1777287858883,500.0,0.00032876,120]
[421261723,1777287861788,500.0,0.00032876,120]
[421261724,1777287874377,500.0,0.00032876,120]
[421261725,1777287875168,500.0,0.00032876,120]
[421261726,1777287876357,500.0,0.00032876,120]
[421261727,1777287879359,500.0,0.00032876,120]
[421261728,1777287880991,500.0,0.00032876,120]
[421261729,1777287883976,500.0,0.00032876,120]
[421261730,1777287884136,1505.02,0.00032,120]
[421261731,1777287887730,814.26,0.00032876,120]
[421261732,1777287888122,1000.0,0.00032876,120]
[421261733,1777287894799,500.0,0.00032876,120]
[421261734,1777287911593,667.8,0.00032876,120]
[421261735,1777287915565,541.66,0.00032876,120]
[421261736,1777287936190,500.0,0.00032876,120]
[421261737,1777287937261,607.4638075,0.00032876,120]
[421261738,1777287941639,872.08,0.00032876,120]
[421261739,1777287950998,702.27,0.00032876,120]
[421261740,1777287954613,500.0,0.00032876,120]
[421261741,1777287959622,552.87,0.00032876,120]
[421261742,1777287960067,500.0,0.00032876,120]
[421261743,1777287960761,500.0,0.00032876,120]
[421261744,1777287968626,706.77,0.00032876,120]
[421261745,1777287973858,500.0,0.00032876,120]
[421261746,1777287981529,500.0,0.00032876,120]
[421261747,1777287983761,614.65,0.00032876,120]
[421261748,1777287983994,1041.68,0.00032876,120]
[421261749,1777287994731,500.0,0.00032876,120]
[421261750,1777287996465,500.0,0.00032876,120]
[421261751,1777288011622,237.08274465,0.00032876,120]
[421261752,1777288020082,500.0,0.00032876,120]
[421261753,1777288024300,500.0,0.00032876,120]
[421261754,1777288026782,500.0,0.00032876,120]
[421261755,1777288028413,689.64,0.00032876,120]
[421261756,1777288032540,500.0,0.00032876,120]
[421261757,1777288032702,4330.69,0.00032876,120]
[421261758,1777288039637,875.69,0.00032876,120]
[421261760,1777288048178,500.0,0.00032876,120]
[421261761,1777288053882,500.0,0.00032876,120]
[421261762,1777288058453,706.17,0.00032876,120]
[421261763,1777288061733,935.0,0.00032876,120]
[421261764,1777288062678,500.0,0.00032876,120]
[421261765,1777288066954,984.07,0.00032876,120]
[421261766,1777288075378,500.0,0.00032876,120]
[421261767,1777288086043,238.52219769,0.00032876,120]
[421261768,1777288132106,500.0,0.00032876,120]
[421261769,1777288134118,1000.0,0.00032876,120]
[421261770,1777288138970,500.0,0.00032876,120]
[421261771,1777288139043,500.0,0.00032876,120]
[421261772,1777288141137,542.84,0.00032876,120]
[421261773,1777288151504,151.0,0.00032876,120]
[421261774,1777288154245,500.0,0.00032876,120]
[421261775,1777288154482,752.2,0.00032876,120]
[421261776,1777288156537,500.0,0.00032876,120]
[421261777,1777288157589,500.0,0.00032876,120]
[421261778,1777288159477,500.0,0.00032876,120]
[421261779,1777288172322,1484.65,0.00032876,120]
[421261780,1777288172574,500.0,0.00032876,120]
[421261781,1777288183202,500.0,0.00032876,120]
[421261782,1777288185345,1673.22,0.00032876,120]
[421261783,1777288185803,200.82624683,0.00032876,120]
[421261784,1777288187838,500.0,0.00032876,120]
[421261785,1777288190735,500.0,0.00032876,120]
[421261786,1777288192993,567.26592244,0.00032876,120]
[421261787,1777288195261,500.0,0.00032876,120]
[421261789,1777288200897,677.32,0.00032876,120]
[421261790,1777288201322,500.0,0.00032876,120]
[421261791,1777288205087,500.0,0.00032876,120]
[421261792,1777288205480,2071.11,0.00032876,120]
[421261793,1777288207537,500.0,0.00032876,120]
[421261794,1777288209267,500.0,0.00032876,120]
[421261795,1777288210416,500.0,0.00032876,120]
[421261796,1777288212323,500.0,0.00032876,120]
[421261797,1777288215379,500.0,0.00032876,120]
[421261798,1777288216059,998.28,0.00032876,120]
[421261800,1777288217659,668.99,0.00032876,120]
[421261801,1777288218797,500.0,0.00032876,120]
[421261802,1777288219369,500.0,0.00032876,120]
[421261803,1777288221447,500.0,0.00032876,120]
[421261804,1777288222008,500.0,0.00032876,120]
[421261805,1777288222791,500.0,0.00032876,120]
[421261806,1777288223704,500.0,0.00032876,120]
[421261807,1777288223782,500.0,0.00032876,120]
[421261808,1777288227092,500.0,0.00032876,120]
[421261810,1777288231966,-506.033,8.912e-05,2]
[421261811,1777288231976,-265.0,8.912e-05,2]
[421261812,1777288231985,-674.56557419,8.984e-05,2]
[421261813,1777288231995,-150.0,8.993e-05,2]
[421261814,1777288232005,-300.0,8.993e-05,2]
[421261815,1777288232015,-64577.6691,8.994e-05,2]
[421261816,1777288232025,-2500.0,8.994e-05,2]
[421261817,1777288232034,-418.67108059,9.093e-05,2]
[421261818,1777288232043,-279.71526546,9.093e-05,2]
[421261819,1777288232053,-420.0,9.892e-05,2]
[421261820,1777288232063,-151.0,0.0001,2]
[421261821,1777288232073,-648.01168632,0.0001,2]
[421261822,1777288232082,-151.0,0.0001,2]
[421261823,1777288232092,-151.0,0.0001,2]
[421261824,1777288232101,-151.0,0.0001,2]
[421261825,1777288232110,-151.0,0.0001,2]
[421261826,1777288232120,-151.0,0.0001,2]
[421261828,1777288232129,-151.0,0.0001,2]
[421261830,1777288232138,-151.0,0.0001,2]
[421261832,1777288232148,-151.0,0.0001,2]
[421261833,1777288232159,-151.0,0.0001,2]
[421261834,1777288232168,-151.0,0.0001,2]
[421261835,1777288232178,-3106.09298016,0.0001,2]
[421261836,1777288232187,-178.7469507,0.000109,2]
[421261837,1777288232197,-5231.27765268,0.00011099,2]
[421261838,1777288232207,-1000.0,0.0001161,2]
[421261839,1777288232221,-1000.0,0.0001161,2]
[421261840,1777288232230,-1000.0,0.0001161,2]
[421261841,1777288232240,-1000.0,0.0001161,2]
[421261842,1777288232250,-1000.0,0.0001161,2]
[421261843,1777288232259,-623.59342293,0.0001161,2]
[421261844,1777288232269,-162.27045424,0.00012586,2]
[421261845,1777288232278,-5231.27765268,0.00013137,2]
[421261846,1777288232288,-500.0,0.00013698,2]
[421261847,1777288232297,-500.0,0.00013698,2]
[421261848,1777288232307,-500.0,0.00013698,2]
[421261849,1777288232316,-500.0,0.00013698,2]
[421261850,1777288232325,-254.92407677,0.00013699,2]
[421261851,1777288232335,-178.7469507,0.00014421,2]
[421261852,1777288232344,-3106.09298015,0.00015283,2]
[421261853,1777288232354,-5231.27765268,0.00016483,2]
[421261854,1777288232363,-178.7469507,0.0001905,2]
[421261855,1777288232373,-5231.27765268,0.00019828,2]
[421261856,1777288232382,-354.0,0.0002,2]
[421261857,1777288232392,-166.0,0.0002,2]
[421261858,1777288232401,-306.0,0.0002,2]
[421261859,1777288232411,-3106.09298015,0.00020665,2]
[421261860,1777288232420,-354.0,0.00021,2]
[421261861,1777288232429,-306.0,0.00021,2]
[421261862,1777288232442,-354.0,0.00022,2]
[421261863,1777288232451,-306.0,0.00022,2]
[421261864,1777288232461,-263.53,0.00022466,2]
[421261865,1777288232473,-354.0,0.00023,2]
[421261866,1777288232483,-306.0,0.00023,2]
[421261867,1777288232492,-5231.27765268,0.00023173,2]
[421261868,1777288232502,-178.7469507,0.00023679,2]
[421261869,1777288232511,-354.0,0.00024,2]
[421261870,1777288232520,-306.0,0.00024,2]
[421261871,1777288232530,-8450.1631788,0.000249,3]
[421261872,1777288232539,-366.0,0.00025,2]
[421261873,1777288232548,-306.0,0.00025,2]